lending/lending_fUSD_20250706
["ID","MTS","AMOUNT","RATE_DAILY","PERIOD"]
[369895032,1751767833058,-796.48,0.0001851,2]
[369895034,1751767833067,-796.48,0.00018519,2]
[369895036,1751767833077,-167.99,0.0001853,2]
[369895038,1751767833087,-250.0,0.00018616,2]
[369895039,1751767833096,-150.0,0.00018736,2]
[369895040,1751767833105,-150.0,0.00018736,2]
[369895041,1751767833116,-150.0,0.00018736,2]
[369895042,1751767833127,-780.42362768,0.00018811,2]
[369895043,1751767833136,-443.08025801,0.00018811,2]
[369895044,1751767833146,-307.90391338,0.00018811,2]
[369895045,1751767833156,-300.0,0.00018811,2]
[369895046,1751767833165,-300.0,0.00018811,2]
[369895047,1751767833175,-300.0,0.00018811,2]
[369895048,1751767833184,-207.4,0.00018811,2]
[369895049,1751767833194,-300.0,0.00018811,2]
[369895050,1751767833203,-300.0,0.00018811,2]
[369895051,1751767833213,-300.0,0.00018811,2]
[369895052,1751767833223,-300.0,0.00018811,2]
[369895053,1751767833232,-251.58351207,0.00018811,2]
[369895054,1751767833241,-300.0,0.00018811,2]
[369895055,1751767833251,-200.0,0.00018811,2]
[369895057,1751767833260,-227.52711559,0.00018811,2]
[369895059,1751767833271,-200.0,0.00018811,2]
[369895061,1751767833282,-522.43393255,0.00018811,2]
[369895062,1751767833291,-200.0,0.00018811,2]
[369895064,1751767833301,-200.0,0.00018811,2]
[369895066,1751767833311,-200.0,0.00018811,2]
[369895068,1751767833321,-200.0,0.00018811,2]
[369895070,1751767833330,-339.45218163,0.00018811,2]
[369895072,1751767833340,-500.0,0.00018811,2]
[369895074,1751767833350,-500.0,0.00018811,2]
[369895076,1751767833360,-500.0,0.00018811,2]
[369895078,1751767833370,-500.0,0.00018811,2]
[369895080,1751767833379,-500.0,0.00018811,2]
[369895082,1751767833389,-500.0,0.00018811,2]
[369895084,1751767833399,-500.0,0.00018811,2]
[369895086,1751767833409,-500.0,0.00018811,2]
[369895088,1751767833419,-500.0,0.00018811,2]
[369895090,1751767833428,-500.0,0.00018811,2]
[369895092,1751767833437,-500.0,0.00018811,2]
[369895094,1751767833446,-236.35958339,0.00018811,2]
[369895096,1751767833455,-300.0,0.00018811,2]
[369895098,1751767833464,-300.0,0.00018811,2]
[369895099,1751767833473,-300.0,0.00018811,2]
[369895101,1751767833482,-300.0,0.00018811,2]
[369895103,1751767833491,-300.0,0.00018811,2]
[369895105,1751767833500,-300.0,0.00018811,2]
[369895107,1751767833510,-300.0,0.00018811,2]
[369895109,1751767833519,-300.0,0.00018811,2]
[369895111,1751767833528,-223.59579433,0.00018811,2]
[369895113,1751767833538,-3056.46550689,0.000189,2]
[369895115,1751767833547,-1081.0,0.00018976,2]
[369895117,1751767833557,-4213.56,0.00019,2]
[369895119,1751767833566,-1175.926,0.00019051,2]
[369895121,1751767833576,-155.354,0.00019051,2]
[369895123,1751767833584,-1700.0,0.00019065,2]
[369895125,1751767833593,-1801.36660673,0.000191,2]
[369895127,1751767833602,-1801.36660672,0.000191,2]
[369895129,1751767833611,-4143.851,0.00019141,2]
[369895131,1751767833621,-7185.026,0.00019141,2]
[369895133,1751767833630,-757.9443,0.00019151,2]
[369895135,1751767833640,-210.26992061,0.00019165,2]
[369895137,1751767833649,-836.59818225,0.00019165,2]
[369895139,1751767833658,-500.0,0.00019177,2]
[369895141,1751767833668,-150.0,0.00019177,2]
[369895143,1751767833677,-500.0,0.00019177,2]
[369895145,1751767833686,-500.0,0.00019177,2]
[369895146,1751767833695,-500.0,0.00019177,2]
[369895148,1751767833704,-150.0,0.00019177,2]
[369895150,1751767833713,-988.0,0.00019177,2]
[369895152,1751767833723,-649.0,0.00019177,2]
[369895177,1751767833954,-152.61045062,0.00019178,2]
[369895179,1751767833965,-170.59,0.00019178,2]
[369895181,1751767833974,-288.0,0.0001918,2]
[369895183,1751767833984,-1062.0,0.00019188,2]
[369895184,1751767833993,-627.0,0.00019188,2]
[369895186,1751767834003,-464.20629033,0.00019199,2]
[369895188,1751767834012,-472.70790865,0.00019199,2]
[369895190,1751767834022,-1014.35636373,0.00019199,2]
[369895192,1751767834031,-259.24361959,0.00019199,2]
[369895194,1751767834040,-460.0,0.00019199,2]
[369895196,1751767834050,-460.0,0.00019199,2]
[369895198,1751767834059,-460.0,0.00019199,2]
[369895200,1751767834069,-503.56720216,0.00019199,2]
[369895202,1751767834079,-471.6236873,0.00019199,2]
[369895204,1751767834088,-460.0,0.00019199,2]
[369895206,1751767834098,-235.42181144,0.000192,2]
[369895208,1751767834107,-151.73840022,0.000192,2]
[369895210,1751767834117,-2509.66098,0.000192,2]
[369895212,1751767834127,-300.0,0.000192,2]
[369895214,1751767834137,-168.0,0.00019208,2]
[369895216,1751767834147,-250.0827518,0.00019345,2]
[369895218,1751767834157,-200.0,0.00019351,2]
[369895221,1751767834167,-209.96985004,0.00019357,2]
[369895223,1751767834177,-170.905901,0.00019362,2]
[369895225,1751767834187,-200.0,0.0001937,2]
[369895227,1751767834196,-200.0,0.00019373,2]
[369895228,1751767834205,-706.28781462,0.0001938,2]
[369895230,1751767834215,-1774.58585207,0.0001938,2]
[369895232,1751767834224,-200.0,0.00019389,2]
[369895234,1751767834233,-250.0827518,0.00019396,2]
[369895236,1751767834242,-620.3584,0.00019397,2]
[369895238,1751767834252,-609.19516444,0.000194,2]
[369895240,1751767834261,-2845.40485247,0.000194,2]
[369895242,1751767834272,-209.96985004,0.00019408,2]
[369895244,1751767834281,-200.0,0.00019415,2]
[369895246,1751767834291,-609.1951644,0.00019423,2]
[369895248,1751767834300,-168.0,0.00019435,2]
[369895250,1751767834310,-609.1951644,0.00019445,2]
[369895252,1751767834320,-500.0,0.00019451,2]
[369895254,1751767834329,-150.0,0.00019451,2]
[369895256,1751767834339,-500.0,0.00019451,2]
[369895258,1751767834352,-503.375046,0.00019451,2]
[369895260,1751767834361,-505.22244308,0.00019451,2]
[369895262,1751767834372,-150.0,0.00019451,2]
[369895264,1751767834381,-988.0,0.00019451,2]
[369895266,1751767834391,-649.0,0.00019451,2]
[369895268,1751767834402,-200.0,0.00019456,2]
[369895270,1751767834412,-1575.93559277,0.0001946,2]
[369895272,1751767834423,-706.28781462,0.00019461,2]
[369895275,1751767834434,-1062.0,0.00019462,2]
[369895276,1751767834444,-627.0,0.00019462,2]
[369895279,1751767834454,-609.1951644,0.00019468,2]
[369895280,1751767834463,-1476.21744568,0.0001947,2]
[369895282,1751767834472,-1774.58585207,0.00019472,2]
[369895284,1751767834481,-750.5804062,0.00019473,2]
[369895286,1751767834491,-460.90674878,0.00019473,2]
[369895288,1751767834500,-466.22988568,0.00019473,2]
[369895290,1751767834509,-468.61432398,0.00019473,2]
[369895292,1751767834519,-490.0,0.00019473,2]
[369895294,1751767834528,-200.0,0.00019474,2]
[369895296,1751767834538,-200.0,0.00019484,2]
[369895298,1751767834547,-750.5804062,0.00019487,2]
[369895300,1751767834556,-2845.40485242,0.00019488,2]
[369895302,1751767834566,-200.0,0.00019489,2]
[369895304,1751767834575,-503.0,0.0001949,6]
[369895306,1751767834584,-787.94,0.0001949,2]
[369895308,1751767834593,-609.1951644,0.0001949,2]
[369895310,1751767834602,-1476.21744568,0.00019491,2]
[369895312,1751767834612,-19990.86936476,0.00019497,2]
[369895314,1751767834622,-273.8150686,0.00019497,2]
[369895316,1751767834632,-4000.0,0.00019499,2]
[369895319,1751767834644,-1032.19,0.000195,3]
[369895320,1751767834655,-14066.2,0.000195,2]
[369895323,1751767834666,-4213.56,0.000195,2]
[369895324,1751767834676,-18176.3006,0.000195,2]
[369895327,1751767834686,-500.0,0.000195,7]
[369895328,1751767834696,-609.1951644,0.00019513,2]
[369895330,1751767834706,-609.1951644,0.00019535,2]
[369895333,1751767834716,-168.0,0.0001955,2]
[369895335,1751767834725,-2406.83363253,0.00019554,2]
[369895337,1751767834734,-164.73605009,0.00019554,2]
[369895339,1751767834743,-3056.46550683,0.00019555,2]
[369895341,1751767834752,-609.1951644,0.00019558,2]
[369895343,1751767834761,-2845.40485242,0.00019576,2]
[369895345,1751767834771,-609.1951644,0.0001958,2]
[369895346,1751767834780,-401.71,0.00019589,2]
[369895348,1751767834790,-476.71339962,0.00019599,2]
[369895350,1751767834799,-460.0,0.00019599,2]
[369895352,1751767834809,-466.13049688,0.00019599,2]
[369895354,1751767834818,-526.46942141,0.00019599,2]
[369895356,1751767834829,-533.08569885,0.00019599,2]
[369895358,1751767834838,-464.74731072,0.00019599,2]
[369895360,1751767834848,-467.46929269,0.00019599,2]
[369895362,1751767834857,-296.49625641,0.00019599,2]
[369895364,1751767834866,-469.3003376,0.00019599,2]
[369895366,1751767834875,-492.70538401,0.00019599,2]
[369895368,1751767834885,-463.93074612,0.00019599,2]
[369895370,1751767834894,-464.98496789,0.00019599,2]
[369895372,1751767834904,-461.74280454,0.00019599,2]
[369895374,1751767834913,-463.41760928,0.00019599,2]
[369895376,1751767834922,-467.60997376,0.00019599,2]
[369895378,1751767834931,-464.27806627,0.00019599,2]
[369895380,1751767834941,-465.96159585,0.00019599,2]
[369895382,1751767834951,-462.59179591,0.00019599,2]
[369895384,1751767834961,-494.09481647,0.00019599,2]
[369895386,1751767834970,-465.04254201,0.00019599,2]
[369895388,1751767834980,-462.62414887,0.00019599,2]
[369895390,1751767834990,-460.0,0.00019599,2]
[369895392,1751767834999,-460.0,0.00019599,2]
[369895394,1751767835010,-291.83765745,0.00019599,2]
[369895395,1751767835019,-460.0,0.00019599,2]
[369895397,1751767835029,-460.0,0.00019599,2]
[369895399,1751767835038,-2748.207947,0.00019599,2]
[369895401,1751767835048,-501.91518783,0.00019599,2]
[369895403,1751767835057,-159.855954,0.00019599,2]
[369895405,1751767835067,-162.096221,0.00019599,2]
[369895407,1751767835076,-351.546584,0.00019599,2]
[369895409,1751767835086,-460.0,0.00019599,2]
[369895411,1751767835095,-2680.536676,0.00019599,2]
[369895413,1751767835104,-2996.054165,0.00019599,2]
[369895415,1751767835114,-460.0,0.00019599,2]
[369895417,1751767835123,-460.0,0.00019599,2]
[369895419,1751767835133,-460.0,0.00019599,2]
[369895421,1751767835142,-460.0,0.00019599,2]
[369895423,1751767835151,-460.0,0.00019599,2]
[369895425,1751767835160,-460.0,0.00019599,2]
[369895427,1751767835170,-460.0,0.00019599,2]
[369895429,1751767835179,-460.0,0.00019599,2]
[369895431,1751767835190,-460.0,0.00019599,2]
[369895433,1751767835199,-460.0,0.00019599,2]
[369895435,1751767835208,-460.0,0.00019599,2]
[369895437,1751767835217,-530.13647063,0.00019599,2]
[369895439,1751767835226,-460.0,0.00019599,2]
[369895441,1751767835235,-460.0,0.00019599,2]
[369895443,1751767835245,-460.0,0.00019599,2]
[369895445,1751767835254,-460.0,0.00019599,2]
[369895447,1751767835263,-460.0,0.00019599,2]
[369895449,1751767835275,-460.0,0.00019599,2]
[369895451,1751767835284,-460.0,0.00019599,2]
[369895453,1751767835293,-460.0,0.00019599,2]
[369895455,1751767835302,-463.29441753,0.00019599,2]
[369895457,1751767835313,-461.76318991,0.00019599,2]
[369895459,1751767835322,-465.98976305,0.00019599,2]
[369895461,1751767835331,-460.0,0.00019599,2]
[369895463,1751767835341,-460.0,0.00019599,2]
[369895465,1751767835350,-462.94996769,0.00019599,2]
[369895467,1751767835359,-462.46499041,0.00019599,2]
[369895469,1751767835369,-460.0,0.00019599,2]
[369895471,1751767835378,-472.05045858,0.00019599,2]
[369895473,1751767835388,-463.95079297,0.00019599,2]
[369895475,1751767835398,-460.0,0.00019599,2]
[369895477,1751767835407,-462.25827311,0.00019599,2]
[369895479,1751767835417,-460.0,0.00019599,2]
[369895481,1751767835426,-556.02442983,0.00019599,2]
[369895483,1751767835436,-460.0,0.00019599,2]
[369895485,1751767835445,-465.98391263,0.00019599,2]
[369895487,1751767835454,-460.0,0.00019599,2]
[369895489,1751767835466,-460.0,0.00019599,2]
[369895491,1751767835476,-460.0,0.00019599,2]
[369895493,1751767835485,-460.0,0.00019599,2]
[369895495,1751767835495,-460.0,0.00019599,2]
[369895497,1751767835504,-460.0,0.00019599,2]
[369895499,1751767835513,-460.0,0.00019599,2]
[369895501,1751767835522,-546.98076153,0.00019599,2]
[369895503,1751767835532,-493.54000619,0.00019599,2]
[369895504,1751767835542,-460.0,0.00019599,2]
[369895505,1751767835551,-254.94828871,0.00019599,2]
[369895506,1751767835560,-460.0,0.00019599,2]
[369895507,1751767835570,-460.0,0.00019599,2]
[369895508,1751767835579,-460.0,0.00019599,2]
[369895509,1751767835589,-460.0,0.00019599,2]
[369895510,1751767835599,-460.0,0.00019599,2]
[369895511,1751767835608,-169.6021038,0.00019599,2]
[369895512,1751767835617,-460.0,0.00019599,2]
[369895513,1751767835627,-500.0,0.00019599,2]
[369895514,1751767835636,-469.31944222,0.00019599,2]
[369895515,1751767835646,-460.0,0.00019599,2]
[369895516,1751767835656,-496.44703875,0.00019599,2]
[369895517,1751767835666,-460.0,0.00019599,2]
[369895518,1751767835676,-460.0,0.00019599,2]
[369895519,1751767835687,-327.33868503,0.00019599,2]
[369895520,1751767835697,-460.0,0.00019599,2]
[369895521,1751767835707,-460.0,0.00019599,2]
[369895522,1751767835721,-474.96923192,0.00019599,2]
[369895523,1751767835733,-460.0,0.00019599,2]
[369895524,1751767835743,-460.0,0.00019599,2]
[369895525,1751767835752,-460.0,0.00019599,2]
[369895526,1751767835763,-460.0,0.00019599,2]
[369895527,1751767835772,-463.89015311,0.00019599,2]
[369895528,1751767835782,-460.0,0.00019599,2]
[369895529,1751767835792,-460.0,0.00019599,2]
[369895530,1751767835802,-469.43790441,0.00019599,2]
[369895531,1751767835811,-259.45256292,0.00019599,2]
[369895532,1751767835822,-460.0,0.00019599,2]
[369895533,1751767835832,-460.0,0.00019599,2]
[369895534,1751767835842,-460.0,0.00019599,2]
[369895535,1751767835852,-591.14236801,0.00019599,2]
[369895536,1751767835862,-460.0,0.00019599,2]
[369895537,1751767835873,-460.0,0.00019599,2]
[369895538,1751767835883,-460.0,0.00019599,2]
[369895539,1751767835893,-460.0,0.00019599,2]
[369895540,1751767835901,-518.97990998,0.00019599,2]
[369895541,1751767835911,-418.04446895,0.00019599,2]
[369895542,1751767835920,-460.0,0.00019599,2]
[369895543,1751767835931,-460.0,0.00019599,2]
[369895544,1751767835942,-460.0,0.00019599,2]
[369895545,1751767835953,-460.0,0.00019599,2]
[369895546,1751767835963,-460.0,0.00019599,2]
[369895547,1751767835972,-460.0,0.00019599,2]
[369895548,1751767835981,-460.0,0.00019599,2]
[369895549,1751767835991,-460.0,0.00019599,2]
[369895550,1751767836001,-460.0,0.00019599,2]
[369895551,1751767836010,-44176.26190169,0.000196,2]
[369895552,1751767836019,-1100.0,0.000196,7]
[369895553,1751767836030,-134416.73370638,0.000196,2]
[369895554,1751767836327,-743.63974438,0.000196,2]
[369895555,1751767836342,-460.0,0.00019599,2]
[369895556,1751767836357,-4275.09153941,0.000196,2]
[369895557,1751767836371,-10371.74059379,0.000196,2]
[369895558,1751767836381,-152.072637,0.000196,2]
[369895559,1751767836390,-151.0,0.000196,2]
[369895560,1751767836399,-268.637691,0.000196,2]
[369895561,1751767836408,-609.1951644,0.00019603,2]
[369895562,1751767836417,-609.1951644,0.00019625,2]
[369895563,1751767836426,-800.49,0.00019625,2]
[369895564,1751767836435,-800.49,0.00019625,2]
[369895565,1751767836444,-509.8,0.00019625,2]
[369895566,1751767836453,-151.0,0.00019626,2]
[369895567,1751767836464,-2406.8336325,0.00019626,2]
[369895568,1751767836479,-787.94,0.0001963,2]
[369895569,1751767836491,-318.0,0.00019638,2]
[369895570,1751767836502,-187.0,0.00019638,2]
[369895571,1751767836511,-401.71,0.00019643,2]
[369895572,1751767836520,-609.1951644,0.00019648,2]
[369895573,1751767836531,-150.0,0.00019648,2]
[369895574,1751767836541,-151.0,0.00019653,2]
[369895575,1751767836553,-151.0,0.00019653,2]
[369895576,1751767836564,-151.0,0.00019653,2]
[369895577,1751767836575,-500.0,0.00019653,2]
[369895578,1751767836586,-329.2529828,0.00019653,2]
[369895579,1751767836599,-460.0,0.00019654,2]
[369895580,1751767836609,-460.0,0.00019654,2]
[369895581,1751767836622,-460.0,0.00019654,2]
[369895582,1751767836632,-460.0,0.00019654,2]
[369895583,1751767836641,-460.0,0.00019654,2]
[369895584,1751767836651,-460.0,0.00019654,2]
[369895585,1751767836660,-460.0,0.00019654,2]
[369895586,1751767836669,-522.44747616,0.00019654,2]
[369895587,1751767836678,-460.0,0.00019654,2]
[369895588,1751767836689,-464.24142191,0.00019654,2]
[369895589,1751767836700,-232.28410389,0.00019654,2]
[369895590,1751767836709,-460.0,0.00019654,2]
[369895591,1751767836719,-460.0,0.00019654,2]
[369895592,1751767836729,-466.21785694,0.00019654,2]
[369895593,1751767836739,-460.0,0.00019654,2]
[369895594,1751767836751,-460.0,0.00019654,2]
[369895595,1751767836761,-460.0,0.00019654,2]
[369895596,1751767836770,-460.0,0.00019654,2]
[369895597,1751767836779,-460.0,0.00019654,2]
[369895598,1751767836788,-460.0,0.00019654,2]
[369895599,1751767836798,-460.0,0.00019654,2]
[369895600,1751767836807,-460.0,0.00019654,2]
[369895601,1751767836817,-460.0,0.00019654,2]
[369895602,1751767836827,-460.0,0.00019654,2]
[369895603,1751767836838,-460.0,0.00019654,2]
[369895604,1751767836848,-460.0,0.00019654,2]
[369895605,1751767836857,-460.0,0.00019654,2]
[369895606,1751767836866,-460.0,0.00019654,2]
[369895607,1751767836879,-323.7659697,0.00019654,2]
[369895608,1751767836889,-460.0,0.00019654,2]
[369895609,1751767836898,-55.4145945,0.00019654,2]
[369895610,1751767836911,-411.09002283,0.00019654,2]
[369895611,1751767836921,-460.0,0.00019654,2]
[369895612,1751767836932,-522.0590456,0.00019654,2]
[369895613,1751767836943,-460.0,0.00019654,2]
[369895614,1751767836952,-460.0,0.00019654,2]
[369895615,1751767836962,-460.0,0.00019654,2]
[369895616,1751767836971,-460.0,0.00019654,2]
[369895617,1751767836981,-460.0,0.00019654,2]
[369895618,1751767836991,-465.27588122,0.00019654,2]
[369895619,1751767837001,-460.0,0.00019654,2]
[369895620,1751767837010,-460.0,0.00019654,2]
[369895621,1751767837020,-460.0,0.00019654,2]
[369895622,1751767837029,-460.0,0.00019654,2]
[369895623,1751767837039,-460.0,0.00019654,2]
[369895624,1751767837048,-323.05689337,0.00019654,2]
[369895625,1751767837060,-136.94310663,0.00019654,2]
[369895626,1751767837070,-460.0,0.00019654,2]
[369895627,1751767837079,-189.2571995,0.00019654,2]
[369895628,1751767837090,-365.89431371,0.00019654,2]
[369895629,1751767837099,-460.0,0.00019654,2]
[369895630,1751767837108,-460.0,0.00019654,2]
[369895631,1751767837118,-559.08687787,0.00019654,2]
[369895632,1751767837127,-460.0,0.00019654,2]
[369895633,1751767837137,-468.65296218,0.00019654,2]
[369895634,1751767837149,-460.0,0.00019654,2]
[369895635,1751767837160,-530.06341325,0.00019654,2]
[369895636,1751767837171,-460.0,0.00019654,2]
[369895637,1751767837183,-460.0,0.00019654,2]
[369895638,1751767837194,-62.66344725,0.00019654,2]
[369895639,1751767837217,-410.5050605,0.00019654,2]
[369895640,1751767837227,-462.48634962,0.00019654,2]
[369895641,1751767837237,-460.0,0.00019654,2]
[369895642,1751767837247,-460.0,0.00019654,2]
[369895643,1751767837257,-460.0,0.00019654,2]
[369895644,1751767837267,-460.0,0.00019654,2]
[369895645,1751767837284,-460.0,0.00019654,2]
[369895646,1751767837294,-460.0,0.00019654,2]
[369895647,1751767837303,-492.88933126,0.00019654,2]
[369895648,1751767837313,-460.0,0.00019654,2]
[369895649,1751767837325,-460.0,0.00019654,2]
[369895650,1751767837336,-460.0,0.00019654,2]
[369895651,1751767837347,-460.0,0.00019654,2]
[369895652,1751767837358,-460.0,0.00019654,2]
[369895653,1751767837370,-491.5863484,0.00019654,2]
[369895654,1751767837379,-460.0,0.00019654,2]
[369895655,1751767837391,-460.0,0.00019654,2]
[369895656,1751767837401,-460.0,0.00019654,2]
[369895657,1751767837411,-460.0,0.00019654,2]
[369895658,1751767837421,-460.0,0.00019654,2]
[369895659,1751767837430,-463.01190406,0.00019654,2]
[369895660,1751767837439,-460.0,0.00019654,2]
[369895661,1751767837448,-505.75222447,0.00019654,2]
[369895662,1751767837457,-460.0,0.00019654,2]
[369895663,1751767837466,-458.58882924,0.00019654,2]
[369895664,1751767837475,-460.0,0.00019654,2]
[369895665,1751767837484,-460.0,0.00019654,2]
[369895666,1751767837493,-460.0,0.00019654,2]
[369895667,1751767837502,-460.0,0.00019654,2]
[369895668,1751767837511,-460.0,0.00019654,2]
[369895669,1751767837521,-460.0,0.00019654,2]
[369895670,1751767837530,-465.05925897,0.00019654,2]
[369895671,1751767837539,-460.0,0.00019654,2]
[369895672,1751767837548,-460.0,0.00019654,2]
[369895673,1751767837557,-460.0,0.00019654,2]
[369895674,1751767837566,-460.0,0.00019654,2]
[369895675,1751767837575,-460.0,0.00019654,2]
[369895676,1751767837584,-460.0,0.00019654,2]
[369895677,1751767837593,-460.0,0.00019654,2]
[369895678,1751767837602,-460.0,0.00019654,2]
[369895679,1751767837811,-460.0,0.00019654,2]
[369895680,1751767837822,-524.43057778,0.00019654,2]
[369895681,1751767837831,-460.0,0.00019654,2]
[369895682,1751767837840,-460.0,0.00019654,2]
[369895683,1751767837849,-460.0,0.00019654,2]
[369895684,1751767837859,-497.4123585,0.00019654,2]
[369895686,1751767837868,-460.0,0.00019654,2]
[369895687,1751767837877,-460.0,0.00019654,2]
[369895688,1751767837886,-460.0,0.00019654,2]
[369895689,1751767837896,-460.0,0.00019654,2]
[369895690,1751767837905,-460.0,0.00019654,2]
[369895691,1751767837914,-460.0,0.00019654,2]
[369895692,1751767837923,-460.0,0.00019654,2]
[369895693,1751767837934,-232.401559,0.00019654,2]
[369895694,1751767837943,-460.0,0.00019654,2]
[369895695,1751767837953,-460.0,0.00019654,2]
[369895696,1751767837963,-533.92086357,0.00019654,2]
[369895697,1751767837972,-460.0,0.00019654,2]
[369895698,1751767837982,-465.01772428,0.00019654,2]
[369895699,1751767837991,-460.0,0.00019654,2]
[369895700,1751767838001,-460.0,0.00019654,2]
[369895701,1751767838011,-460.0,0.00019654,2]
[369895702,1751767838022,-460.0,0.00019654,2]
[369895703,1751767838031,-167.07546,0.00019654,2]
[369895704,1751767838041,-460.0,0.00019654,2]
[369895705,1751767838052,-460.0,0.00019654,2]
[369895706,1751767838061,-460.0,0.00019654,2]
[369895707,1751767838072,-460.0,0.00019654,2]
[369895708,1751767838082,-460.0,0.00019654,2]
[369895709,1751767838091,-460.0,0.00019654,2]
[369895710,1751767838101,-460.0,0.00019654,2]
[369895711,1751767838110,-460.0,0.00019654,2]
[369895712,1751767838124,-460.0,0.00019654,2]
[369895713,1751767838134,-460.0,0.00019654,2]
[369895714,1751767838147,-478.65013492,0.00019654,2]
[369895715,1751767838156,-460.0,0.00019654,2]
[369895716,1751767838166,-460.0,0.00019654,2]
[369895717,1751767838175,-460.0,0.00019654,2]
[369895718,1751767838184,-460.0,0.00019654,2]
[369895719,1751767838193,-460.0,0.00019654,2]
[369895720,1751767838203,-460.0,0.00019654,2]
[369895721,1751767838212,-463.54520728,0.00019654,2]
[369895722,1751767838222,-460.0,0.00019654,2]
[369895723,1751767838232,-460.0,0.00019654,2]
[369895724,1751767838241,-460.0,0.00019654,2]
[369895725,1751767838251,-460.0,0.00019654,2]
[369895726,1751767838260,-460.0,0.00019654,2]
[369895727,1751767838271,-583.13590254,0.00019654,2]
[369895728,1751767838284,-473.27920869,0.00019654,2]
[369895730,1751767838293,-463.41317495,0.00019654,2]
[369895732,1751767838304,-280.00166222,0.00019654,2]
[369895734,1751767838313,-460.0,0.00019654,2]
[369895736,1751767838325,-460.0,0.00019654,2]
[369895737,1751767838334,-463.76969924,0.00019654,2]
[369895738,1751767838343,-468.81093579,0.00019654,2]
[369895739,1751767838355,-460.0,0.00019654,2]
[369895740,1751767838364,-460.0,0.00019654,2]
[369895741,1751767838374,-460.0,0.00019654,2]
[369895742,1751767838383,-472.19941527,0.00019654,2]
[369895743,1751767838393,-463.82938068,0.00019654,2]
[369895745,1751767838402,-460.0,0.00019654,2]
[369895747,1751767838411,-467.2,0.00019654,2]
[369895749,1751767838420,-460.0,0.00019654,2]
[369895751,1751767838430,-460.0,0.00019654,2]
[369895753,1751767838440,-460.0,0.00019654,2]
[369895755,1751767838450,-491.74,0.00019654,2]
[369895757,1751767838460,-460.0,0.00019654,2]
[369895759,1751767838469,-462.75013913,0.00019654,2]
[369895761,1751767838478,-460.0,0.00019654,2]
[369895763,1751767838488,-460.0,0.00019654,2]
[369895765,1751767838497,-460.0,0.00019654,2]
[369895767,1751767838507,-466.11847121,0.00019654,2]
[369895769,1751767838517,-595.11262047,0.00019654,2]
[369895771,1751767838527,-156.27761164,0.00019654,2]
[369895773,1751767838536,-474.43415008,0.00019654,2]
[369895775,1751767838546,-460.0,0.00019654,2]
[369895777,1751767838556,-460.0,0.00019654,2]
[369895779,1751767838566,-468.84987686,0.00019654,2]
[369895782,1751767838576,-460.0,0.00019654,2]
[369895784,1751767838586,-461.97403375,0.00019654,2]
[369895785,1751767838595,-460.0,0.00019654,2]
[369895787,1751767838605,-460.0,0.00019654,2]
[369895790,1751767838615,-602.11718976,0.00019654,2]
[369895791,1751767838624,-466.22065476,0.00019654,2]
[369895793,1751767838633,-401.51074715,0.00019654,2]
[369895795,1751767838643,-460.0,0.00019654,2]
[369895797,1751767838652,-508.23,0.00019654,2]
[369895799,1751767838662,-453.09670008,0.00019654,2]
[369895801,1751767838671,-467.30856569,0.00019654,2]